bitfinex/quotes_ETHUSD_20220117
["timestamp","ask_amount","ask_price","bid_price","bid_amount"]
[1642402883850,4.18628202,3273.1,3272.6,0.00284212]
[1642402884442,2.67282905,3273.2,3272.6,0.00284212]
[1642402884647,4.16556627,3273.1,3272.6,0.00284212]
[1642402885349,1.27454995,3273.2,3272.6,0.00284212]
[1642402885544,1.27454995,3273.2,3272.6,1.78544795]
[1642402885745,1.27454995,3273.2,3272.6,0.00284212]
[1642402885949,1.27454995,3273.2,3272.7,0.0022737]
[1642402886244,1.27454995,3273.2,3272.8,0.70905576]
[1642402886245,1.13383192,3273.2,3272.8,0.70905576]
[1642402886448,0.3749194,3273.2,3272.8,0.70905576]
[1642402886688,0.3749194,3273.2,3272.9,0.00438483]
[1642402887491,0.6749194,3273.2,3272.9,2.61963548]
[1642402888090,0.62817773,3273.2,3272.9,2.61963548]
[1642402888291,0.62817773,3273.2,3272.9,2.6163875]
[1642402888496,1.39193323,3273.2,3273.0,2.61525065]
[1642402889492,1.39193323,3273.2,3272.9,2.6163875]
[1642402892744,1.39193323,3273.2,3273.0,0.00453584]
[1642402893753,1.42779509,3273.2,3273.0,0.00453584]
[1642402894196,1.42779509,3273.2,3273.1,18.61525065]
[1642402894996,1.42779509,3273.2,3273.0,0.00453584]
[1642402895200,1.39193323,3273.2,3272.9,0.00113685]
[1642402895398,1.43092305,3273.2,3272.9,0.00113685]
[1642402895595,1.43092305,3273.2,3272.8,0.70905576]
[1642402895796,0.00113685,3273.1,3272.8,0.70905576]
[1642402899962,0.00113685,3273.1,3272.9,0.02151383]
[1642402900363,0.00113685,3273.1,3272.9,17.89151383]
[1642402900564,0.00113685,3273.1,3273.0,52.60676195]
[1642402900762,0.00113685,3273.1,3273.0,51.60676195]
[1642402900962,0.00113685,3273.1,3273.0,53.05076195]
[1642402901565,0.00113685,3273.1,3273.0,35.18076195]
[1642402901797,0.00113685,3273.1,3273.0,53.05076195]
[1642402902698,0.00113685,3273.1,3273.0,56.97282991]
[1642402905096,0.04787852,3273.1,3273.0,56.97282991]
[1642402906145,0.09462019,3273.1,3273.0,56.97282991]
[1642402907147,0.14136186,3273.1,3273.0,56.97282991]
[1642402908251,0.14136186,3273.3,3273.2,30.05]
[1642402908451,0.14136186,3273.3,3273.2,48.364]
[1642402908652,0.14249871,3273.3,3273.2,40.57304545]
[1642402909398,0.14249871,3273.3,3273.2,22.70304545]
[1642402910698,0.14249871,3273.3,3273.2,26.62511341]
[1642402910894,0.3,3273.7,3273.3,23.04526779]
[1642402911295,0.3,3273.7,3273.3,8.74526779]
[1642402911296,0.00170527,3273.6,3273.3,8.74526779]
[1642402911695,0.00113684,3273.5,3273.3,8.74526779]
[1642402915250,0.00113684,3273.5,3273.4,28.86441488]
[1642402916051,0.00113684,3273.5,3273.4,46.73441488]
[1642402916448,0.00113684,3273.5,3273.4,28.86441488]
[1642402916715,1.34988866,3273.8,3273.5,18.5]
[1642402916716,1.20917063,3273.8,3273.5,18.5]
[1642402916905,1.5266521,3275.5,3273.8,17.87]
[1642402917104,9.3030521,3275.5,3274.5,0.01201064]
[1642402917312,9.33443444,3275.5,3274.5,0.01201064]
[1642402917501,9.3030521,3275.5,3274.5,0.01201064]
[1642402917902,9.3030521,3275.5,3274.9,0.80123767]
[1642402918102,9.3030521,3275.5,3274.5,17.88201064]
[1642402918103,5.4102521,3275.5,3275.1,1.31355449]
[1642402918505,0.7633261,3275.2,3275.1,1.31355449]
[1642402918704,0.7633261,3275.2,3274.5,0.01201064]
[1642402918905,1.5269141,3275.1,3274.3,0.444]
[1642402919106,0.62723446,3274.7,3273.9,0.27639994]
[1642402919304,0.62723446,3274.7,3273.9,0.72039994]
[1642402919504,0.7952612,3274.5,3273.9,0.27639994]
[1642402919908,0.00511581,3274.4,3274.1,1.52407667]
[1642402920308,1.05456348,3274.5,3273.9,0.27639994]
[1642402920309,0.00454739,3274.3,3273.9,0.27639994]
[1642402920548,0.76821399,3274.3,3273.8,3.9205827]
[1642402920744,0.00397897,3274.2,3273.7,3.6969]
[1642402920947,0.30397897,3274.2,3273.6,0.69605665]
[1642402921147,0.00341054,3274.1,3273.6,0.69605665]
[1642402921449,0.05361112,3273.5,3273.3,8.74526779]
[1642402921644,0.05361112,3273.5,3273.4,25.79184903]
[1642402921845,0.05361112,3273.5,3273.4,29.71311999]
[1642402923145,0.05361112,3273.5,3273.4,35.11311999]
[1642402923547,0.05361112,3273.5,3273.4,52.98311999]
[1642402924200,0.00341054,3274.1,3273.4,52.98311999]
[1642402924395,0.00341054,3274.1,3274.0,15.93948428]
[1642402924595,1.55828313,3274.6,3274.0,15.93948428]
[1642402924796,2.15828313,3274.6,3274.0,15.93948428]
[1642402924999,0.00568424,3274.5,3274.0,15.93948428]
[1642402925397,0.00511581,3274.4,3274.0,15.93948428]
[1642402925796,0.7635076,3274.5,3274.0,15.93948428]
[1642402925797,0.00454739,3274.3,3274.0,15.93948428]
[1642402926196,0.00397897,3274.2,3274.0,15.93948428]
[1642402926598,0.00341054,3274.1,3274.0,15.93948428]
[1642402927199,0.00341054,3274.1,3274.0,24.23948428]
[1642402928847,0.00341054,3274.1,3274.0,15.93948428]
[1642402929247,0.00341054,3274.1,3274.0,24.03948428]
[1642402929647,0.00341054,3274.1,3274.0,15.93948428]
[1642402930248,0.00341054,3274.1,3274.0,24.03948428]
[1642402930455,0.05702166,3274.1,3274.0,24.03948428]
[1642402931450,0.05702166,3274.1,3274.0,24.05210909]
[1642402931712,0.05702166,3274.1,3274.0,25.49610909]
[1642402931904,1.1966,3275.1,3274.1,30.0]
[1642402932104,1.1966,3275.1,3274.2,5.6858436]
[1642402932303,0.00511581,3275.0,3274.3,0.77156268]
[1642402932503,0.00511581,3275.0,3274.5,1.30844862]
[1642402932704,0.00454739,3274.9,3274.6,4.36795752]
[1642402932904,0.00454739,3274.9,3274.7,17.88253789]
[1642402933109,3.7243,3275.7,3274.8,34.46215502]
[1642402933504,0.00852635,3275.6,3274.8,34.46215502]
[1642402933904,0.00795793,3275.5,3274.8,34.46215502]
[1642402934306,0.00738951,3275.4,3274.8,34.46215502]
[1642402934505,0.00738951,3275.4,3274.8,30.0]
[1642402934706,0.00682108,3275.3,3274.9,3.81856806]
[1642402934905,0.00682108,3275.3,3274.9,6.43203281]
[1642402935108,0.00625266,3275.2,3274.9,6.43203281]
[1642402935552,0.00568424,3275.1,3274.9,6.43203281]
[1642402935754,0.00568424,3275.1,3275.0,25.81346475]
[1642402935951,1.3632475,3275.7,3275.0,25.81346475]
[1642402936150,1.3632475,3275.7,3275.3,0.69710785]
[1642402936352,0.00852635,3275.6,3275.3,0.69710785]
[1642402936554,0.00852635,3275.6,3275.3,4.5210387]
[1642402936752,0.00795793,3275.5,3275.4,47.87]
[1642402936953,0.00795793,3275.5,3275.4,49.0879]
[1642402937953,0.00795793,3275.5,3275.4,51.70101223]
[1642402938754,0.00795793,3275.5,3275.4,60.58877873]
[1642402939199,0.00795793,3275.5,3275.4,58.9756665]
[1642402940402,0.00795793,3275.5,3275.4,61.58865646]
[1642402941007,1.194,3276.6,3275.5,30.13819997]
[1642402941206,1.194,3276.6,3275.7,0.7629]
[1642402941405,0.00397897,3276.2,3275.8,23.37411978]
[1642402941803,0.00341054,3276.1,3275.8,23.37411978]
[1642402942006,0.00341054,3276.1,3275.9,1.33259785]
[1642402942204,10.9056,3277.1,3276.0,34.40133205]
[1642402942705,0.00852635,3277.0,3276.3,0.75229297]
[1642402942954,0.00852635,3277.0,3276.5,1.08808733]
[1642402943153,0.00795793,3276.9,3276.5,1.08808733]
[1642402943559,0.3,3277.1,3276.5,1.08808733]
[1642402943560,0.00738951,3276.8,3276.6,3.85978397]
[1642402943752,0.00738951,3276.8,3276.6,3.85760876]
[1642402943952,0.00682108,3276.7,3276.6,12.70760876]
[1642402946053,0.00682108,3276.7,3276.6,17.90760876]
[1642402946900,0.00682108,3276.7,3276.6,26.35760876]
[1642402947298,0.00682108,3276.7,3276.6,44.22760876]
[1642402947497,0.122209,3277.2,3276.7,31.93094542]
[1642402947698,0.122209,3277.2,3276.8,4.25343778]
[1642402947898,0.0022737,3277.1,3276.8,4.25343778]
[1642402948299,0.00170527,3277.0,3276.8,4.25343778]
[1642402948498,0.00170527,3277.0,3276.9,30.444]
[1642402948701,0.122209,3277.2,3276.9,30.444]
[1642402948903,0.122209,3277.2,3277.0,4.06485277]
[1642402949099,0.0022737,3277.1,3277.0,4.06485277]
[1642402949301,0.0022737,3277.1,3276.9,0.444]
[1642402949700,0.122209,3277.2,3276.9,0.444]
[1642402949701,0.00170527,3277.0,3276.9,0.444]
[1642402949900,0.00170527,3277.0,3276.9,7.544]
[1642402950755,0.00170527,3277.0,3276.9,7.1]
[1642402950953,0.122209,3277.2,3277.0,8.88606123]
[1642402953058,0.122209,3277.2,3277.1,4.25549292]
[1642402953256,0.122209,3277.2,3277.0,8.88606123]
[1642402953457,0.12334585,3277.2,3277.0,8.88606123]
[1642402953657,0.42334585,3277.2,3277.0,8.88606123]
[1642402954062,0.42334585,3277.2,3277.1,34.25549292]
[1642402954063,0.12334585,3277.2,3277.1,34.25549292]
[1642402954299,0.08934585,3277.2,3277.1,34.69949292]
[1642402954700,0.08934585,3277.2,3277.1,35.69949292]
[1642402955599,0.08934585,3277.2,3277.1,5.69949292]
[1642402955800,0.08934585,3277.2,3277.1,20.19949292]
[1642402956501,0.08934585,3277.2,3277.1,0.444]
[1642402956902,0.08934585,3277.2,3277.1,16.33388281]
[1642402958875,0.08934585,3277.2,3277.1,16.30647423]
[1642402960477,0.08934585,3277.2,3277.1,34.17647423]
[1642402960677,0.08934585,3277.2,3277.1,35.17647423]
[1642402960874,0.08934585,3277.2,3277.1,43.32647423]
[1642402961076,0.08934585,3277.2,3277.1,37.78860019]
[1642402961702,0.08934585,3277.2,3277.1,44.18860019]
[1642402961906,2.30117703,3278.6,3277.2,30.0]
[1642402961907,2.2885499,3278.6,3277.2,30.0]
[1642402962104,0.7626322,3278.6,3277.3,24.43453447]
[1642402962308,1.2006,3278.8,3277.3,24.43453447]
[1642402962309,0.00341054,3277.8,3277.3,24.43453447]
[1642402962503,0.00341054,3277.8,3277.6,1.23868921]
[1642402962703,7.9593,3278.9,3277.6,17.144]
[1642402962704,0.00284212,3277.7,3277.6,17.144]
[1642402963506,0.00284212,3277.7,3277.6,2.61212596]
[1642402964411,0.00284212,3277.7,3277.2,3.74297109]
[1642402964609,0.00284212,3277.7,3277.2,4.74297109]
[1642402964810,0.00227369,3277.6,3277.2,4.74297109]
[1642402965009,0.00227369,3277.6,3277.2,20.00084513]
[1642402965208,0.00170527,3277.5,3277.2,20.00084513]
[1642402965451,0.00170527,3277.5,3277.3,21.31013741]
[1642402965652,0.00113685,3277.4,3277.3,17.87]
[1642402965851,0.00113685,3277.4,3277.3,41.97]
[1642402966052,0.00113685,3277.4,3277.3,24.1]
[1642402966255,0.00113685,3277.4,3277.3,42.97]
[1642402966454,0.00113685,3277.4,3277.3,43.414]
[1642402966653,0.00113685,3277.4,3277.3,49.264]
[1642402966854,0.00113685,3277.4,3277.3,43.414]
[1642402968656,0.00113685,3277.4,3277.3,49.264]
[1642402968856,0.00113685,3277.4,3277.3,53.18167878]
[1642402970202,8.7218422,3278.9,3277.5,17.87]
[1642402970398,8.7218422,3278.9,3277.6,3.41916917]
[1642402970600,0.60795793,3278.8,3277.7,17.87]
[1642402970799,0.60795793,3278.8,3277.8,4.76746061]
[1642402970999,0.0073895,3278.7,3277.8,22.63746061]
[1642402971205,0.0073895,3278.7,3278.6,17.55303085]
[1642402971400,0.3,3278.8,3278.6,17.55303085]
[1642402971599,0.3,3278.9,3278.6,17.55303085]
[1642402971800,0.3,3278.9,3278.7,3.83289348]
[1642402972100,0.00795793,3278.8,3278.7,3.83289348]
[1642402972501,0.77434669,3279.5,3278.6,17.55303085]
[1642402972699,1.07434669,3279.5,3278.6,17.55303085]
[1642402972948,1.02377827,3279.5,3278.7,9.95]
[1642402973148,0.3,3279.4,3278.7,9.95]
[1642402973353,0.3,3279.4,3278.7,9.95397897]
[1642402973551,2.32377827,3279.5,3278.7,0.00397897]
[1642402973749,1.32377827,3279.5,3278.7,0.00397897]
[1642402973954,1.32377827,3279.5,3278.6,0.00454739]
[1642402974356,2.32377827,3279.5,3278.6,0.00454739]
[1642402974556,2.32377827,3279.5,3278.8,0.61769474]
[1642402974762,1.32377827,3279.5,3278.8,0.61769474]
[1642402974960,1.32377827,3279.5,3278.9,0.00284212]
[1642402976828,1.32377827,3279.5,3278.6,0.00454739]
[1642402977221,0.76253,3279.2,3278.6,0.00454739]
[1642402977422,1.06253,3279.2,3278.6,0.00454739]
[1642402977625,1.36253,3279.2,3278.6,0.00454739]
[1642402977822,1.36253,3279.2,3278.6,0.86341145]
[1642402977823,0.6,3279.2,3278.6,0.86341145]
[1642402978023,0.3,3279.3,3278.6,0.86341145]
[1642402978428,0.02188028,3279.4,3278.6,0.86341145]
[1642402981251,1.03433688,3279.5,3278.6,0.86341145]
[1642402982254,0.02180865,3279.4,3278.6,0.86341145]
[1642402982653,0.02180865,3279.4,3279.1,1.14224697]
[1642402982957,0.02180865,3279.4,3279.2,0.00113685]
[1642402984603,0.02180865,3279.4,3278.8,0.00341054]
[1642402986602,4.25252832,3279.4,3278.8,0.00341054]
[1642402987004,4.55252832,3279.4,3278.8,0.00341054]
[1642402987202,0.3,3279.4,3278.8,0.00341054]
[1642402987402,4.50929751,3279.4,3278.8,0.00341054]
[1642402987704,4.20929751,3279.4,3278.4,0.00568424]
[1642402987971,0.7625708,3279.2,3278.4,0.00568424]
[1642402988355,5.7383527,3279.2,3278.4,0.00568424]
[1642402988557,0.65398162,3279.1,3278.4,0.00568424]
[1642402988758,4.8925475,3279.0,3278.4,0.00568424]
[1642402989157,5.1925475,3279.0,3277.9,0.00852636]
[1642402989356,0.7627465,3278.7,3277.9,0.00852636]
[1642402989558,4.74757611,3278.6,3277.9,0.00852636]
[1642402991257,0.3,3278.6,3277.9,0.00852636]
[1642402991460,1.2234,3279.1,3277.9,22.43426157]
[1642402991703,1.2234,3279.1,3278.0,1.444]
[1642402992003,1.2234,3279.1,3278.1,4.26288243]
[1642402992404,1.2234,3279.1,3278.2,1.53781659]
[1642402992705,1.2234,3279.1,3278.3,0.00625266]
[1642402992904,1.5234,3279.1,3278.3,0.00625266]
[1642402993105,0.3,3279.0,3278.3,0.00625266]
[1642402994107,1.5234,3279.1,3278.3,0.00625266]
[1642402994507,1.2234,3279.1,3278.3,4.01177164]
[1642402994908,1.2234,3279.1,3278.4,2.61654068]
[1642402995308,1.2234,3279.1,3278.5,0.00511581]
[1642402995759,1.5234,3279.1,3278.5,2.61597225]
[1642402995959,0.3,3279.0,3278.5,2.61597225]
[1642402996156,0.3,3279.0,3278.6,0.00454739]
[1642402996755,0.3,3279.0,3278.4,0.00568424]
[1642403000407,1.5234,3279.1,3278.4,0.00568424]
[1642403002813,1.5234,3279.1,3278.5,2.61078581]
[1642403003255,1.5234,3279.1,3278.6,0.00454739]
[1642403004354,1.5234,3279.1,3278.4,0.00568424]
[1642403005654,0.3,3279.0,3278.4,0.00568424]
[1642403005853,0.3,3279.0,3278.5,2.61085925]
[1642403006255,0.3,3279.0,3278.6,0.00454739]
[1642403007508,0.3,3279.0,3278.7,2.61085925]
[1642403007903,3.959,3279.4,3278.8,0.00341054]
[1642403008105,0.3,3279.3,3278.8,0.83084892]
[1642403008404,1.3625256,3279.5,3278.9,0.00284212]
[1642403008604,0.3,3279.3,3278.9,0.00284212]
[1642403009011,1.3625256,3279.5,3278.9,0.00284212]
[1642403010766,1.3625256,3279.5,3278.8,2.25956176]
[1642403010968,0.00284212,3279.4,3278.9,2.61065945]
[1642403011366,0.00227369,3279.3,3278.9,2.61065945]
[1642403011569,0.00227369,3279.3,3278.8,2.25956176]
[1642403011769,0.00170527,3279.2,3278.8,2.25956176]
[1642403011970,0.76423987,3279.2,3278.8,2.25956176]
[1642403012168,0.00113685,3279.1,3278.8,2.25956176]
[1642403013169,0.00113685,3279.1,3278.3,16.7619808]
[1642403013568,0.00113685,3279.1,3278.4,0.00284212]
[1642403014206,0.00113685,3279.1,3278.4,1.44382501]
[1642403014402,0.00113685,3279.1,3278.4,4.05457773]
[1642403014603,0.00113685,3279.1,3278.5,0.00227369]
[1642403015804,0.00113685,3279.1,3278.5,2.61302641]
[1642403016204,0.00113685,3279.1,3278.6,0.00170527]
[1642403018458,0.00113685,3279.1,3278.5,0.00227369]
[1642403019659,0.76273,3279.0,3278.5,0.00227369]
[1642403020158,1.06273,3279.0,3278.5,0.00227369]
[1642403021160,0.76278,3278.9,3278.5,0.00227369]
[1642403021359,0.7627821,3278.8,3278.5,0.00227369]
[1642403021560,1.825522,3278.7,3278.5,0.00227369]
[1642403022205,0.63617754,3278.6,3278.5,0.00227369]
[1642403022905,1.63617754,3278.6,3277.8,0.00625266]
[1642403023107,1.93617754,3278.6,3277.8,0.00625266]
[1642403023505,2.46170324,3278.6,3277.8,0.00625266]
[1642403023707,3.46170324,3278.6,3277.8,2.61744133]
[1642403023906,0.7627538,3278.4,3277.8,2.61744133]
[1642403024107,0.7627538,3278.4,3277.9,0.00568424]
[1642403024510,0.3,3278.3,3277.9,0.00568424]
[1642403024706,0.3,3278.3,3277.9,2.61687291]
[1642403025107,0.3,3278.3,3278.0,0.00511581]
[1642403027258,0.3,3278.3,3278.1,2.61118867]
[1642403027658,0.3,3278.3,3278.2,0.00397897]
[1642403029511,0.3,3278.3,3277.6,0.00738951]
[1642403029914,2.60436931,3278.7,3277.6,0.00738951]
[1642403030106,0.3,3278.6,3277.6,3.83026873]
[1642403030305,0.3,3278.6,3277.6,0.00738951]
[1642403030506,0.3,3278.6,3277.7,2.61809274]
[1642403030707,0.7627217,3278.4,3277.7,2.61127166]
[1642403030906,0.7627217,3278.4,3277.8,0.00625266]
[1642403031106,0.3,3278.3,3277.9,0.07499508]
[1642403031306,0.3,3278.3,3278.0,1.44270098]
[1642403031505,1.60436931,3278.7,3278.0,1.44781679]
[1642403031706,0.3,3278.3,3278.1,0.00454739]
[1642403031906,0.3,3278.6,3278.1,0.00454739]
[1642403032307,0.3,3278.6,3278.1,2.61581905]
[1642403032510,1.0626616,3278.6,3278.1,2.61581905]
[1642403032706,1.0626616,3278.6,3278.2,0.00397897]
[1642403033160,0.3,3278.6,3278.2,0.00397897]
[1642403033361,0.3,3278.6,3278.1,0.8877665]
[1642403033762,0.3,3278.6,3278.2,0.00397897]
[1642403033961,1.5254519,3278.7,3278.2,0.00397897]
[1642403034167,0.3,3278.6,3278.2,0.00397897]
[1642403034762,0.62222174,3278.4,3278.2,0.00397897]
[1642403035269,11.8258506,3278.3,3277.9,0.07499508]
[1642403035463,12.15852553,3278.3,3277.9,0.07499508]
[1642403035664,0.3,3278.2,3278.0,0.00113684]
[1642403035864,0.3,3278.2,3277.9,0.07499508]
[1642403036466,1.0629203,3278.2,3277.9,0.07499508]
[1642403036919,2.0629203,3278.2,3277.9,0.07499508]
[1642403037823,2.0129203,3278.2,3277.9,0.07499508]
[1642403038422,15.0,3278.1,3277.6,0.8877665]
[1642403038723,0.76297,3278.0,3277.7,0.00170527]
[1642403038922,1.06297,3278.0,3277.7,0.00170527]
[1642403039422,1.36297,3278.0,3277.7,0.00170527]
[1642403039622,1.36297,3278.0,3277.9,0.8877665]
[1642403040222,1.36297,3278.0,3277.7,0.00170527]
[1642403040223,5.2,3277.9,3277.7,0.00170527]
[1642403040469,5.962982,3277.9,3277.7,0.00170527]
[1642403040664,8.1,3277.8,3277.7,0.00170527]
[1642403040864,21.7,3277.8,3277.7,0.00170527]
[1642403041069,22.3198,3277.8,3277.7,0.00170527]
[1642403041267,1.97326105,3277.8,3277.7,0.00170527]
[1642403041466,1.38647627,3277.8,3277.7,0.00170527]
[1642403043284,1.68647627,3277.8,3277.7,0.88947177]
[1642403043866,1.63647627,3277.8,3277.7,0.88947177]
[1642403045910,1.63647627,3277.8,3277.7,1.77723827]
[1642403049457,12.28647627,3277.8,3277.4,0.0022737]
[1642403049657,1.52616,3277.7,3277.4,0.0022737]
[1642403049857,1.52616,3277.7,3277.5,0.00113685]
[1642403050057,0.3,3277.6,3277.5,0.00113685]
[1642403056161,11.8,3277.6,3277.5,0.00113685]
[1642403056556,12.1,3277.6,3277.5,0.00113685]
[1642403057757,18.3,3277.6,3277.5,0.00113685]
[1642403057958,18.3,3277.6,3277.4,0.0022737]
[1642403057959,14.0,3277.5,3277.4,0.0022737]
[1642403058157,15.0,3277.5,3277.4,0.0022737]
[1642403058959,15.0,3277.5,3276.5,7.503]
[1642403058960,22.45,3277.4,3276.5,7.503]
[1642403059209,0.76323,3277.1,3276.5,7.503]
[1642403059509,4.88774894,3277.0,3276.6,0.00511581]
[1642403059708,5.63539517,3277.0,3276.6,0.00511581]
[1642403059913,1.0,3276.9,3276.6,0.00511581]
[1642403060108,4.14949705,3276.8,3276.6,0.00511581]
[1642403060310,4.44949705,3276.8,3276.6,0.00511581]
[1642403061318,2.36326,3276.9,3276.6,0.00511581]
[1642403061911,4.07366803,3276.8,3276.6,0.00511581]
[1642403062512,2.36326,3276.9,3276.6,0.00511581]
[1642403063666,1.36326,3276.9,3276.6,0.00511581]
[1642403063870,2.36326,3276.9,3276.6,0.00511581]
[1642403064468,1.36326,3276.9,3276.6,0.00511581]
[1642403064666,2.36326,3276.9,3276.6,0.00511581]
[1642403064871,1.36326,3276.9,3276.6,0.00511581]
[1642403065067,2.36326,3276.9,3276.6,0.00511581]
[1642403065268,1.36326,3276.9,3276.6,0.00511581]
[1642403065470,2.36326,3276.9,3276.6,0.00511581]
[1642403066270,1.36326,3276.9,3276.6,0.00511581]
[1642403067710,0.6,3276.9,3276.6,0.00511581]
[1642403068112,0.3,3276.8,3276.6,0.00511581]
[1642403068511,0.3,3276.9,3276.6,0.00511581]
[1642403070469,2.0632603,3277.0,3276.6,0.00511581]
[1642403070662,0.3,3276.9,3276.6,0.00511581]
[1642403071765,1.0632603,3277.0,3276.6,3.70036801]
[1642403071963,0.3,3277.0,3276.6,3.70036801]
[1642403072260,0.3,3277.3,3276.7,0.00454739]
[1642403072462,3.46295001,3277.9,3276.7,0.00454739]
[1642403072663,0.00113685,3277.7,3277.4,0.82553912]
[1642403073062,0.00341054,3278.1,3277.4,0.82553912]
[1642403073463,0.00284212,3278.0,3277.4,0.82553912]
[1642403073863,0.00227369,3277.9,3277.4,0.82553912]
[1642403074315,0.00170527,3277.8,3277.5,3.83838599]
[1642403074512,0.00170527,3277.8,3277.4,0.82553912]
[1642403074712,0.00397896,3278.2,3277.4,0.82553912]
[1642403074913,0.00397896,3278.2,3277.5,3.69416307]
[1642403075112,0.00341054,3278.1,3277.5,3.69416307]
[1642403075313,0.00341054,3278.1,3277.4,0.82553912]
[1642403075517,0.00284212,3278.0,3277.4,0.82553912]
[1642403075916,0.00227369,3277.9,3277.4,0.82553912]
[1642403076313,0.00170527,3277.8,3277.4,0.82553912]
[1642403076715,0.00397896,3278.2,3277.4,0.82553912]
[1642403076916,0.7628388,3278.1,3277.4,0.82553912]
[1642403077112,0.3,3278.0,3277.4,0.82553912]
[1642403077313,0.30284212,3278.0,3277.4,0.82553912]
[1642403077516,0.00227369,3277.9,3277.4,0.82553912]
[1642403077963,0.00170527,3277.8,3277.4,0.82553912]
[1642403083010,0.30170527,3277.8,3277.2,4.11185272]
[1642403083210,0.30170527,3277.8,3277.0,5.00190071]
[1642403083410,0.60170527,3277.8,3277.3,0.00113685]
[1642403083610,0.60170527,3277.8,3277.1,0.00227369]
[1642403084011,0.60170527,3277.8,3277.3,2.61182497]
[1642403084213,1.36470527,3277.8,3277.3,2.61182497]
[1642403084411,0.60170527,3277.8,3277.3,2.61182497]
[1642403084815,0.60170527,3277.8,3277.0,2.61466709]
[1642403085212,0.60170527,3277.8,3277.1,0.00227369]
[1642403087263,0.60170527,3277.8,3277.1,2.61409866]
[1642403087664,0.60170527,3277.8,3277.2,0.00170527]
[1642403088467,0.60170527,3277.8,3277.1,0.00227369]
[1642403088865,0.60170527,3277.8,3276.9,4.97507775]
[1642403088866,0.60170527,3277.8,3277.0,0.00284212]
[1642403089309,0.60170527,3277.8,3277.0,2.614822]
[1642403089709,0.60170527,3277.8,3277.1,0.00227369]
[1642403091911,0.00170527,3277.8,3277.1,0.00227369]
[1642403093162,0.30170527,3277.8,3277.1,0.00227369]
[1642403093363,0.60170527,3277.8,3277.1,0.00227369]
[1642403095163,0.30170527,3277.8,3277.1,0.00227369]
[1642403095366,0.60170527,3277.8,3277.1,0.00227369]
[1642403095566,0.30170527,3277.8,3277.1,0.00227369]
[1642403096063,0.60170527,3277.8,3277.1,0.00227369]
[1642403097515,0.60170527,3277.8,3277.1,3.75338888]
[1642403097920,0.60170527,3277.8,3277.2,0.00170527]
[1642403098616,0.60170527,3277.8,3277.1,0.00227369]
[1642403098816,0.60170527,3277.8,3277.2,2.61197988]
[1642403099216,0.60170527,3277.8,3277.3,0.00113685]
[1642403100019,0.60170527,3277.8,3277.2,0.00170527]
[1642403100861,0.60170527,3277.8,3277.1,0.00227369]
[1642403101062,0.60170527,3277.8,3277.2,2.61197988]
[1642403101461,0.60170527,3277.8,3277.3,0.00113685]
[1642403102562,0.60170527,3277.8,3277.1,0.00227369]
[1642403103162,0.60170527,3277.8,3277.0,0.00284212]
[1642403103562,1.60170527,3277.8,3277.0,2.61475272]
[1642403103962,1.60170527,3277.8,3277.1,0.00227369]
[1642403104812,0.76301,3277.7,3277.1,0.00227369]
[1642403105616,0.76301,3277.7,3277.0,0.00284212]
[1642403105813,0.72020799,3277.6,3277.0,0.00284212]
[1642403106113,0.25673548,3277.1,3277.0,0.00284212]
[1642403106512,0.25673548,3277.1,3276.8,0.00397896]
[1642403107715,0.55673548,3277.1,3276.8,0.00397896]
[1642403108863,0.25673548,3277.1,3276.8,0.00397896]
[1642403110363,0.25673548,3277.1,3277.0,11.93784107]
[1642403110688,0.25673548,3277.1,3277.0,0.00284212]
[1642403112414,0.06974209,3277.1,3276.7,0.00454739]
[1642403113715,0.06974209,3277.1,3276.8,2.61218367]
[1642403114117,0.06974209,3277.1,3276.9,0.00341054]
[1642403114818,0.36974209,3277.1,3276.9,0.00341054]
[1642403115864,0.36974209,3277.1,3276.7,0.00454739]
[1642403116262,0.36974209,3277.1,3276.9,2.61218367]
[1642403116663,0.36974209,3277.1,3277.0,0.00284212]
[1642403117262,0.36974209,3277.1,3276.9,0.00341054]
[1642403118062,0.36974209,3277.1,3276.7,0.00454739]
[1642403118667,0.06974209,3277.1,3276.7,0.00454739]
[1642403118863,0.7629351,3277.5,3276.9,2.61218367]
[1642403119316,0.7629351,3277.5,3277.0,0.00284212]
[1642403119916,1.3629351,3277.5,3277.0,0.00284212]
[1642403121019,1.3629351,3277.5,3277.0,2.61502579]
[1642403121422,1.3629351,3277.5,3277.1,0.00227369]
[1642403123465,0.7629351,3277.5,3277.1,0.00227369]
[1642403123669,4.42643743,3277.9,3277.1,0.00227369]
[1642403124067,0.00170527,3277.8,3277.1,0.00227369]
[1642403124466,0.00113685,3277.7,3277.1,0.00227369]
[1642403125065,0.00113685,3277.7,3277.1,2.61445736]
[1642403125464,0.00113685,3277.7,3277.2,0.00170527]
[1642403126467,0.00113685,3277.7,3277.2,3.70241149]
[1642403126915,0.00113685,3277.7,3277.3,0.00113685]
[1642403127714,0.00113685,3277.7,3277.3,2.61218367]
[1642403128514,0.00113685,3277.7,3277.2,0.00170527]
[1642403128914,0.00113685,3277.7,3277.1,0.00227369]
[1642403129315,0.00113685,3277.7,3277.1,2.61445736]
[1642403129518,0.00113685,3277.7,3277.4,0.61515682]
[1642403130965,0.00113685,3277.7,3277.5,2.61218367]
[1642403132267,0.00113685,3277.7,3277.2,0.00170527]
[1642403132668,0.00113685,3277.7,3277.3,0.71095132]
[1642403133070,0.00113685,3277.7,3277.1,0.00227369]
[1642403134716,0.00113685,3277.7,3277.2,0.79184969]
[1642403135116,0.00113685,3277.7,3277.3,0.00113685]
[1642403136118,0.00113685,3277.7,3277.3,2.61218367]
[1642403136718,0.00113685,3277.7,3277.2,1.4809512]
[1642403137117,0.00113685,3277.7,3277.3,0.00113685]
[1642403137319,0.00113685,3277.7,3277.4,2.61218367]
[1642403138165,0.00113685,3277.7,3277.3,3.35201375]
[1642403138364,0.00113685,3277.7,3277.3,2.61332052]
[1642403138965,0.00113685,3277.7,3277.4,2.61218367]
[1642403139569,0.00113685,3277.7,3277.3,2.61332052]
[1642403141067,1.52704965,3277.7,3277.3,2.61332052]
[1642403141267,2.32589925,3277.7,3277.3,2.61332052]
[1642403141469,0.3,3277.6,3277.3,2.61332052]
[1642403142317,0.64060488,3277.5,3277.3,2.61332052]
[1642403142718,0.64060488,3277.5,3277.3,0.00113685]
[1642403143120,1.40367488,3277.5,3276.9,0.00341054]
[1642403143519,2.40367488,3277.5,3276.9,0.00341054]
[1642403143719,2.92989488,3277.5,3276.9,0.00341054]
[1642403143921,0.7631159,3277.3,3276.9,0.00341054]
[1642403144121,2.32178159,3277.3,3276.9,0.00341054]
[1642403144320,2.889329,3277.3,3276.9,2.61559421]
[1642403144521,0.76317,3277.1,3276.9,2.61559421]
[1642403144726,2.58963,3277.1,3277.0,0.00284212]